fUSD/lending_fUSD_20260224
["ID","MTS","AMOUNT","RATE_DAILY","PERIOD"]
[406602772,1771968648115,-4571.89980967,0.00016052,2]
[406602773,1771968648124,-9999.99,0.00016116,2]
[406602774,1771968648133,-37687.07119789,0.0001613,2]
[406602775,1771968648143,-466.76,0.00016137,2]
[406602776,1771968648152,-157.39,0.0001616,2]
[406602777,1771968648161,-1500.0,0.00016196,2]
[406602778,1771968648170,-1390.05507377,0.00016196,2]
[406602779,1771968648179,-1500.0,0.00016196,2]
[406602780,1771968648188,-602.53164684,0.00016196,2]
[406602781,1771968648197,-605.8929222,0.00016196,2]
[406602782,1771968648206,-1500.0,0.00016196,2]
[406602783,1771968648215,-1500.0,0.00016196,2]
[406602784,1771968648225,-1500.0,0.00016196,2]
[406602785,1771968648234,-1500.0,0.00016196,2]
[406602786,1771968648244,-1500.0,0.00016196,2]
[406602787,1771968648254,-953.27277481,0.00016196,2]
[406602788,1771968648263,-1007.05086599,0.00016196,2]
[406602789,1771968648272,-659.69197378,0.00016196,2]
[406602790,1771968648281,-1500.0,0.00016196,2]
[406602791,1771968648291,-1500.0,0.00016196,2]
[406602792,1771968648300,-5000.00816343,0.000162,5]
[406602793,1771968648309,-1000.0,0.00016282,2]
[406602794,1771968648318,-366.86567302,0.00016294,2]
[406602795,1771968648328,-200.0,0.0001634,2]
[406602796,1771968648337,-150.73989367,0.00016438,2]
[406602797,1771968648346,-900.0,0.00016438,2]
[406602798,1771968648354,-1240.46,0.00016438,2]
[406602799,1771968648363,-284.34,0.00016475,2]
[406602800,1771968648373,-150.0,0.00016475,7]
[406602801,1771968648382,-704.52755458,0.00016483,2]
[406602802,1771968648391,-476.1,0.00016538,2]
[406602803,1771968648401,-159.79,0.00016541,2]
[406602804,1771968648411,-361.85708907,0.000166,2]
[406602805,1771968648420,-476.1,0.00016655,2]
[406602806,1771968648429,-1000.0,0.0001667,2]
[406602807,1771968648438,-164.73,0.00016712,2]
[406602808,1771968648447,-510.93637167,0.00016744,2]
[406602809,1771968648456,-2003.05357398,0.00016744,2]
[406602810,1771968648465,-932.65135931,0.00016744,2]
[406602811,1771968648474,-2000.0,0.00016744,2]
[406602812,1771968648483,-1755.82806005,0.00016744,2]
[406602813,1771968648492,-500.17462146,0.00016744,2]
[406602814,1771968648502,-2000.0,0.00016744,2]
[406602815,1771968648512,-2000.0,0.00016744,2]
[406602816,1771968648521,-209.92748633,0.00016756,2]
[406602817,1771968648531,-476.1,0.00016772,2]
[406602818,1771968648540,-476.1,0.00016889,2]
[406602819,1771968648677,-500.0,0.00016964,2]
[406602820,1771968648687,-2258.0,0.0001697,2]
[406602821,1771968648696,-9035.0,0.0001697,2]
[406602822,1771968648705,-3620.0,0.00016976,2]
[406602823,1771968648714,-151.0,0.00016997,2]
[406602824,1771968648723,-151.0,0.00016997,2]
[406602825,1771968648732,-500.0,0.00016999,2]
[406602826,1771968648742,-500.0,0.00016999,2]
[406602827,1771968648751,-500.0,0.00016999,2]
[406602828,1771968648761,-293.0,0.00017,2]
[406602829,1771968648770,-300.0,0.00017,2]
[406602830,1771968648779,-173.87087054,0.00017,7]
[406602831,1771968648789,-300.0,0.00017,2]
[406602832,1771968648800,-813492.2395954,0.00017,2]
[406602833,1771968648810,-476.1013388,0.00017006,2]
[406602834,1771968648820,-37687.07119789,0.00017015,2]
[406602835,1771968648830,-1000.0,0.00017058,2]
[406602836,1771968648840,-723.20880552,0.00017158,3]
[406602837,1771968648851,-168.0,0.00017261,2]
[406602838,1771968648861,-1017.25085579,0.00017292,2]
[406602839,1771968648871,-2500.0,0.00017292,2]
[406602840,1771968648882,-2500.0,0.00017292,2]
[406602841,1771968648893,-3054.67235152,0.000175,3]
[406602842,1771968648903,-168.0,0.00017505,2]
[406602843,1771968648913,-189.56,0.00017517,2]
[406602844,1771968648922,-168.0,0.00017599,2]
[406602845,1771968648931,-506.35812357,0.00017641,2]
[406602846,1771968648940,-578.91,0.00017641,2]
[406602847,1771968648949,-578.91,0.00017641,2]
[406602848,1771968648959,-578.91,0.00017641,2]
[406602849,1771968648968,-578.91,0.00017641,2]
[406602850,1771968648977,-579.09383034,0.00017641,2]
[406602851,1771968648986,-501.44,0.00017641,2]
[406602852,1771968648995,-501.44,0.00017641,2]
[406602853,1771968649005,-501.44,0.00017641,2]
[406602854,1771968649014,-501.44,0.00017641,2]
[406602855,1771968649024,-501.45265749,0.00017641,2]
[406602856,1771968649036,-834.42,0.00017641,2]
[406602857,1771968649046,-834.42,0.00017641,2]
[406602858,1771968649055,-834.42,0.00017641,2]
[406602859,1771968649064,-834.42,0.00017641,2]
[406602860,1771968649073,-834.62544103,0.00017641,2]
[406602861,1771968649082,-1345.95417449,0.00017656,3]
[406602862,1771968649091,-168.0,0.00017688,2]
[406602863,1771968649105,-1413.37,0.00017728,2]
[406602864,1771968649114,-9999.99,0.00017728,2]
[406602865,1771968649123,-5895.49730253,0.00017744,5]
[406602866,1771968649132,-178.55,0.00017794,2]
[406602867,1771968649143,-953.71635638,0.000178,2]
[406602868,1771968649152,-10014.48390644,0.000178,2]
[406602869,1771968649162,-155.51282354,0.00017808,2]
[406602870,1771968649172,-800.0,0.00017808,2]
[406602871,1771968649181,-200.21212036,0.0001784,2]
[406602872,1771968649190,-3000.0,0.0001784,2]
[406602873,1771968649199,-10014.48390644,0.0001785,2]
[406602874,1771968649208,-1005.12410844,0.0001786,2]
[406602875,1771968649217,-661.35009067,0.0001789,2]
[406602876,1771968649227,-151.0,0.00017897,2]
[406602877,1771968649237,-554.47,0.00017899,2]
[406602878,1771968649246,-554.47,0.00017899,2]
[406602879,1771968649256,-554.47,0.00017899,2]
[406602880,1771968649266,-554.47,0.00017899,2]
[406602881,1771968649276,-554.69159861,0.00017899,2]
[406602882,1771968649285,-534.69,0.00017899,2]
[406602883,1771968649295,-722.37,0.00017899,2]
[406602884,1771968649304,-768.51,0.00017899,2]
[406602885,1771968649313,-768.51,0.00017899,2]
[406602886,1771968649322,-768.51,0.00017899,2]
[406602887,1771968649332,-768.51,0.00017899,2]
[406602888,1771968649342,-768.6766601,0.00017899,2]
[406602889,1771968649351,-518.48,0.00017899,2]
[406602890,1771968649361,-503.69,0.00017899,2]
[406602891,1771968649370,-1180.4,0.00017899,2]
[406602892,1771968649380,-1180.4,0.00017899,2]
[406602893,1771968649389,-1180.4,0.00017899,2]
[406602894,1771968649398,-1180.4,0.00017899,2]
[406602895,1771968649407,-1180.43528268,0.00017899,2]
[406602896,1771968649417,-25000.0,0.000179,3]
[406602897,1771968649427,-25000.0,0.000179,3]
[406602898,1771968649436,-22459.5822178,0.000179,3]
[406602899,1771968649446,-173.87087054,0.000179,3]
[406602900,1771968649455,-2573.67970606,0.000179,3]
[406602901,1771968649464,-25000.0,0.000179,3]
[406602902,1771968649473,-704.52755458,0.000179,2]
[406602903,1771968649482,-2700.27555814,0.000179,2]
[406602904,1771968649490,-278.63346188,0.000179,2]
[406602905,1771968649500,-37687.07119789,0.000179,2]
[406602906,1771968649511,-10014.48390644,0.000179,2]
[406602907,1771968649520,-500.0,0.000179,2]
[406602908,1771968649529,-500.0,0.000179,2]
[406602909,1771968649539,-500.0,0.000179,2]
[406602910,1771968649548,-500.0,0.000179,2]
[406602911,1771968649557,-500.0,0.000179,2]
[406602912,1771968649566,-500.0,0.000179,2]
[406602913,1771968649576,-500.0,0.000179,2]
[406602914,1771968649585,-500.0,0.000179,2]
[406602915,1771968649594,-500.0,0.000179,2]
[406602916,1771968649603,-500.0,0.000179,2]
[406602917,1771968649612,-500.0,0.000179,2]
[406602918,1771968649622,-500.0,0.000179,2]
[406602919,1771968649630,-500.0,0.000179,2]
[406602920,1771968649639,-500.0,0.000179,2]
[406602921,1771968649648,-500.0,0.000179,2]
[406602922,1771968649658,-500.0,0.000179,2]
[406602923,1771968649667,-500.0,0.000179,2]
[406602924,1771968649676,-500.0,0.000179,2]
[406602925,1771968649686,-500.0,0.000179,2]
[406602926,1771968649695,-500.0,0.000179,2]
[406602927,1771968649705,-500.0,0.000179,2]
[406602928,1771968649715,-500.0,0.000179,2]
[406602929,1771968649725,-500.0,0.000179,2]
[406602930,1771968649734,-500.0,0.000179,2]
[406602931,1771968649744,-500.0,0.000179,2]
[406602932,1771968649753,-500.0,0.000179,2]
[406602933,1771968649763,-500.0,0.000179,2]
[406602934,1771968649772,-500.0,0.000179,2]
[406602935,1771968649782,-500.0,0.000179,2]
[406602936,1771968649791,-500.0,0.000179,2]
[406602937,1771968649800,-500.0,0.000179,2]
[406602938,1771968649810,-500.0,0.000179,2]
[406602939,1771968649819,-500.0,0.000179,2]
[406602940,1771968649829,-500.0,0.000179,2]
[406602941,1771968649838,-500.0,0.000179,2]
[406602942,1771968649847,-500.0,0.000179,2]
[406602943,1771968649856,-500.0,0.000179,2]
[406602944,1771968649865,-500.0,0.000179,2]
[406602945,1771968649874,-500.0,0.000179,2]
[406602946,1771968649883,-500.0,0.000179,2]
[406602947,1771968649893,-500.0,0.000179,2]
[406602948,1771968649902,-500.0,0.000179,2]
[406602949,1771968649912,-500.0,0.000179,2]
[406602950,1771968649921,-500.0,0.000179,2]
[406602951,1771968649930,-500.0,0.000179,2]
[406602952,1771968649939,-500.0,0.000179,2]
[406602953,1771968649948,-500.0,0.000179,2]
[406602954,1771968649957,-487.80716472,0.000179,2]
[406602955,1771968649966,-500.0,0.000179,2]
[406602956,1771968649976,-549.0,0.00017932,2]
[406602957,1771968649985,-248.0,0.00017932,2]
[406602958,1771968649994,-168.0,0.00017944,2]
[406602959,1771968650003,-168.0,0.00017954,2]
[406602960,1771968650012,-4098.0,0.00017973,2]
[406602961,1771968650022,-23161.0,0.00017973,2]
[406602962,1771968650032,-151.0,0.00017997,2]
[406602963,1771968650041,-300.0,0.00017999,2]
[406602964,1771968650051,-666.0,0.00017999,2]
[406602965,1771968650060,-534.69,0.00017999,2]
[406602966,1771968650069,-534.69,0.00017999,2]
[406602967,1771968650078,-534.69,0.00017999,2]
[406602968,1771968650087,-534.69,0.00017999,2]
[406602969,1771968650098,-534.69,0.00017999,2]
[406602970,1771968650108,-534.75,0.00017999,2]
[406602971,1771968650117,-722.37,0.00017999,2]
[406602972,1771968650126,-722.37,0.00017999,2]
[406602973,1771968650136,-722.37,0.00017999,2]
[406602974,1771968650147,-722.37,0.00017999,2]
[406602975,1771968650157,-722.37,0.00017999,2]
[406602976,1771968650167,-722.45338985,0.00017999,2]
[406602977,1771968650177,-300.0,0.00017999,2]
[406602978,1771968650187,-300.0,0.00017999,2]
[406602979,1771968650196,-300.0,0.00017999,2]
[406602980,1771968650206,-666.0,0.00017999,2]
[406602981,1771968650215,-518.48,0.00017999,2]
[406602982,1771968650224,-518.48,0.00017999,2]
[406602983,1771968650234,-518.48,0.00017999,2]
[406602984,1771968650243,-518.48,0.00017999,2]
[406602985,1771968650252,-518.48,0.00017999,2]
[406602986,1771968650261,-518.71229582,0.00017999,2]
[406602987,1771968650274,-503.69,0.00017999,2]
[406602988,1771968650284,-503.69,0.00017999,2]
[406602989,1771968650294,-503.69,0.00017999,2]
[406602990,1771968650303,-503.69,0.00017999,2]
[406602991,1771968650313,-503.69,0.00017999,2]
[406602992,1771968650323,-503.92459131,0.00017999,2]
[406602993,1771968650332,-300.0,0.00017999,2]
[406602994,1771968650341,-536391.57174308,0.00018,2]
[406602995,1771968650841,500.0,0.00045776,120]
[406602996,1771968651297,300.47708369,0.00045776,120]
[406602997,1771968651879,-338.918253,0.000124,2]
[406602998,1771968665703,217.3878906,0.00045776,120]
[406602999,1771968668321,151.0,0.00045776,120]
[406603000,1771968668941,151.0,0.00045776,120]
[406603001,1771968669732,151.0,0.00045776,120]
[406603002,1771968669871,500.0,0.00045776,120]
[406603003,1771968670352,151.0,0.00045776,120]
[406603004,1771968670524,500.0,0.00045776,120]
[406603005,1771968670960,151.0,0.00045776,120]
[406603006,1771968671339,500.0,0.00045776,120]
[406603007,1771968671671,151.0,0.00045776,120]
[406603008,1771968671982,500.0,0.00045776,120]
[406603009,1771968672169,151.0,0.00045776,120]
[406603010,1771968672333,500.0,0.00045776,120]
[406603011,1771968672827,151.0,0.00045776,120]
[406603012,1771968672956,500.0,0.00045776,120]
[406603013,1771968673454,151.0,0.00045776,120]
[406603014,1771968673719,500.0,0.00045776,120]
[406603015,1771968674064,151.0,0.00045776,120]
[406603016,1771968674319,500.0,0.00045776,120]
[406603017,1771968674687,151.0,0.00045776,120]
[406603018,1771968674937,500.0,0.00045776,120]
[406603019,1771968675319,151.0,0.00045776,120]
[406603020,1771968675569,500.0,0.00045776,120]
[406603021,1771968675944,151.0,0.00045776,120]
[406603022,1771968676537,151.0,0.00045776,120]
[406603023,1771968677139,151.0,0.00045776,120]
[406603024,1771968677764,151.0,0.00045776,120]
[406603025,1771968678383,151.0,0.00045776,120]
[406603026,1771968678987,151.0,0.00045776,120]
[406603027,1771968679640,151.0,0.00045776,120]
[406603028,1771968680244,151.0,0.00045776,120]
[406603029,1771968680426,500.0,0.00045776,120]
[406603030,1771968681073,500.0,0.00045776,120]
[406603031,1771968682050,500.0,0.00045776,120]
[406603032,1771968682334,500.0,0.00045776,120]
[406603033,1771968682963,500.0,0.00045776,120]
[406603034,1771968683579,500.0,0.00045776,120]
[406603035,1771968684201,500.0,0.00045776,120]
[406603036,1771968725107,180.72492375,0.00045776,120]
[406603037,1771968725872,360.06815653,0.00045776,120]
[406603038,1771968733470,151.0,0.00045776,120]
[406603039,1771968734069,151.0,0.00045776,120]
[406603040,1771968734455,500.0,0.00045776,120]
[406603041,1771968734689,151.0,0.00045776,120]
[406603042,1771968735001,518.5,0.00045776,120]
[406603043,1771968735331,151.0,0.00045776,120]
[406603044,1771968735603,537.6845,0.00045776,120]
[406603045,1771968735695,500.0,0.00045776,120]
[406603046,1771968735952,151.0,0.00045776,120]
[406603047,1771968736204,557.5788265,0.00045776,120]
[406603048,1771968736302,500.0,0.00045776,120]
[406603049,1771968736540,151.0,0.00045776,120]
[406603050,1771968736807,578.20924308,0.00045776,120]
[406603051,1771968736912,500.0,0.00045776,120]
[406603052,1771968737134,151.0,0.00045776,120]
[406603053,1771968737457,599.60298507,0.00045776,120]
[406603054,1771968737524,500.0,0.00045776,120]
[406603055,1771968737740,151.0,0.00045776,120]
[406603056,1771968738083,621.78829552,0.00045776,120]
[406603057,1771968738148,500.0,0.00045776,120]
[406603058,1771968738551,151.0,0.00045776,120]
[406603059,1771968738687,644.79446246,0.00045776,120]
[406603060,1771968738758,500.0,0.00045776,120]
[406603061,1771968738964,151.0,0.00045776,120]
[406603062,1771968739412,500.0,0.00045776,120]
[406603063,1771968739497,668.65185757,0.00045776,120]
[406603064,1771968739679,151.0,0.00045776,120]
[406603065,1771968739989,500.0,0.00045776,120]
[406603066,1771968740072,693.3919763,0.00045776,120]
[406603067,1771968740321,151.0,0.00045776,120]
[406603068,1771968740572,500.0,0.00045776,120]
[406603069,1771968740656,719.04747942,0.00045776,120]
[406603070,1771968740862,151.0,0.00045776,120]
[406603071,1771968741270,745.65223616,0.00045776,120]
[406603072,1771968741460,151.0,0.00045776,120]
[406603073,1771968741686,500.0,0.00045776,120]
[406603074,1771968741889,773.2413689,0.00045776,120]
[406603075,1771968742106,151.0,0.00045776,120]
[406603076,1771968742334,500.0,0.00045776,120]
[406603077,1771968742568,801.85129955,0.00045776,120]
[406603078,1771968742746,151.0,0.00045776,120]
[406603079,1771968742885,500.0,0.00045776,120]
[406603080,1771968743507,831.51979763,0.00045776,120]
[406603081,1771968743654,151.0,0.00045776,120]
[406603082,1771968743762,500.0,0.00045776,120]
[406603083,1771968744012,862.28603014,0.00045776,120]
[406603084,1771968744167,151.0,0.00045776,120]
[406603085,1771968744264,500.0,0.00045776,120]
[406603086,1771968744371,894.19061326,0.00045776,120]
[406603087,1771968744809,500.0,0.00045776,120]
[406603088,1771968744950,151.0,0.00045776,120]
[406603089,1771968745009,927.27566595,0.00045776,120]
[406603090,1771968745499,500.0,0.00045776,120]
[406603091,1771968745585,151.0,0.00045776,120]
[406603092,1771968745647,961.58486559,0.00045776,120]
[406603093,1771968746024,500.0,0.00045776,120]
[406603094,1771968746224,961.58486559,0.00045776,120]
[406603095,1771968746623,500.0,0.00045776,120]
[406603096,1771968747969,467.65717915,0.00045776,30]
[406603097,1771968791514,500.0,0.00045776,120]
[406603098,1771968792123,518.5,0.00045776,120]
[406603099,1771968792734,537.6845,0.00045776,120]
[406603100,1771968793341,557.5788265,0.00045776,120]
[406603101,1771968793955,578.20924308,0.00045776,120]
[406603102,1771968794568,599.60298507,0.00045776,120]
[406603103,1771968795459,621.78829552,0.00045776,120]
[406603104,1771968795814,644.79446246,0.00045776,120]
[406603105,1771968796476,668.65185757,0.00045776,120]
[406603106,1771968797096,693.3919763,0.00045776,120]
[406603107,1771968797758,719.04747942,0.00045776,120]
[406603108,1771968798396,745.65223616,0.00045776,120]
[406603109,1771968799040,773.2413689,0.00045776,120]
[406603110,1771968799658,801.85129955,0.00045776,120]
[406603111,1771968800833,831.51979763,0.00045776,120]
[406603112,1771968801469,862.28603014,0.00045776,120]
[406603113,1771968802107,894.19061326,0.00045776,120]
[406603114,1771968802776,927.27566595,0.00045776,120]
[406603115,1771968803441,961.58486559,0.00045776,120]
[406603116,1771968804078,961.58486559,0.00045776,120]
[406603117,1771968831995,1200.73195729,9.4e-05,3]
[406603118,1771968855854,151.0,0.00045776,120]
[406603119,1771968856507,151.0,0.00045776,120]
[406603120,1771968857128,151.0,0.00045776,120]
[406603121,1771968857772,151.0,0.00045776,120]
[406603122,1771968858339,151.0,0.00045776,120]
[406603123,1771968858937,151.0,0.00045776,120]
[406603124,1771968859550,151.0,0.00045776,120]
[406603125,1771968860145,151.0,0.00045776,120]
[406603126,1771968860767,151.0,0.00045776,120]
[406603127,1771968861905,151.0,0.00045776,120]
[406603128,1771968862510,438.61842455,0.00045776,120]
[406603129,1771968862560,151.0,0.00045776,120]
[406603130,1771968862632,500.0,0.00045776,120]
[406603131,1771968863163,151.0,0.00045776,120]
[406603132,1771968863237,518.5,0.00045776,120]
[406603133,1771968863773,151.0,0.00045776,120]
[406603134,1771968863881,537.6845,0.00045776,120]
[406603135,1771968864392,151.0,0.00045776,120]
[406603136,1771968864523,557.5788265,0.00045776,120]
[406603137,1771968864992,151.0,0.00045776,120]
[406603138,1771968865181,578.20924308,0.00045776,120]
[406603139,1771968865792,599.60298507,0.00045776,120]
[406603140,1771968866098,151.0,0.00045776,120]
[406603141,1771968866406,621.78829552,0.00045776,120]
[406603142,1771968866722,151.0,0.00045776,120]
[406603143,1771968867021,644.79446246,0.00045776,120]
[406603144,1771968867344,151.0,0.00045776,120]
[406603145,1771968867909,668.65185757,0.00045776,120]
[406603146,1771968867982,151.0,0.00045776,120]
[406603147,1771968868453,693.3919763,0.00045776,120]
[406603148,1771968868575,151.0,0.00045776,120]
[406603149,1771968869077,719.04747942,0.00045776,120]
[406603150,1771968869803,745.65223616,0.00045776,120]
[406603151,1771968870426,773.2413689,0.00045776,120]
[406603152,1771968873831,831.51979763,0.00045776,120]
[406603153,1771968874493,862.28603014,0.00045776,120]
[406603154,1771968875172,894.19061326,0.00045776,120]
[406603155,1771968875844,927.27566595,0.00045776,120]
[406603156,1771968876434,961.58486559,0.00045779,120]
[406603157,1771968877141,961.58486559,0.00045779,120]
[406603158,1771968915709,151.0,0.00045779,120]
[406603159,1771968916324,151.0,0.00045779,120]
[406603160,1771968916926,151.0,0.00045779,120]
[406603161,1771968917541,151.0,0.00045779,120]
[406603162,1771968921347,500.0,0.00045779,120]
[406603163,1771968921976,518.5,0.00045779,120]
[406603164,1771968922621,537.6845,0.00045779,120]
[406603165,1771968923239,557.5788265,0.00045779,120]
[406603166,1771968924403,578.20924308,0.00045779,120]
[406603167,1771968925053,599.60298507,0.00045779,120]
[406603168,1771968925692,621.78829552,0.00045779,120]
[406603169,1771968926512,644.79446246,0.00045779,120]
[406603170,1771968927140,668.65185757,0.00045779,120]
[406603171,1771968934806,693.3919763,0.00045779,120]
[406603172,1771968935553,719.04747942,0.00045779,120]
[406603173,1771968936154,745.65223616,0.00045779,120]
[406603174,1771968936759,773.2413689,0.00045779,120]
[406603175,1771968937364,801.85129955,0.00045779,120]
[406603176,1771968937990,831.51979763,0.00045779,120]
[406603177,1771968938626,862.28603014,0.00045779,120]
[406603178,1771968939269,894.19061326,0.00045779,120]
[406603179,1771968939874,927.27566595,0.00045779,120]
[406603180,1771968940489,961.58486559,0.00045779,120]
[406603181,1771968941141,961.58486559,0.00045779,120]
[406603182,1771969005915,2924.83836269,9.4e-05,3]
[406603183,1771969005962,4034.77370771,9.4e-05,3]
[406603184,1771969006184,1537.41918132,9.4e-05,3]
[406603185,1771969027850,500.0,0.00045779,120]
[406603186,1771969028448,518.5,0.00045779,120]
[406603187,1771969029058,537.6845,0.00045779,120]
[406603188,1771969029643,557.5788265,0.00045779,120]
[406603189,1771969030450,578.20924308,0.00045779,120]
[406603190,1771969030880,599.60298507,0.00045779,120]
[406603191,1771969031496,621.78829552,0.00045779,120]
[406603192,1771969032153,644.79446246,0.00045779,120]
[406603193,1771969032765,668.65185757,0.00045779,120]
[406603194,1771969033383,693.3919763,0.00045779,120]
[406603195,1771969033979,719.04747942,0.00045779,120]
[406603196,1771969034657,745.65223616,0.00045779,120]
[406603197,1771969035200,773.2413689,0.00045779,120]
[406603198,1771969039138,831.51979763,0.00045779,120]
[406603199,1771969039790,862.28603014,0.00045779,120]
[406603200,1771969040418,894.19061326,0.00045779,120]
[406603201,1771969041066,927.27566595,0.00045779,120]
[406603202,1771969041697,961.58486559,0.00045779,120]
[406603203,1771969042345,961.58486559,0.00045779,120]
[406603204,1771969093483,151.0,0.00045779,120]
[406603205,1771969094085,156.587,0.00045779,120]
[406603206,1771969094702,162.380719,0.00045779,120]
[406603207,1771969095333,168.3888056,0.00045779,120]
[406603208,1771969095952,174.61919141,0.00045779,120]
[406603209,1771969096556,181.08010149,0.00045779,120]
[406603210,1771969097177,187.78006525,0.00045779,120]
[406603211,1771969097800,187.78006525,0.00045779,120]
[406603212,1771969155932,500.0,0.00045779,120]
[406603213,1771969156564,518.5,0.00045779,120]
[406603214,1771969157163,537.6845,0.00045779,120]
[406603215,1771969158219,557.5788265,0.00045779,120]
[406603216,1771969158512,578.20924308,0.00045779,120]
[406603217,1771969159117,599.60298507,0.00045779,120]
[406603218,1771969159710,621.78829552,0.00045779,120]
[406603219,1771969160314,644.79446246,0.00045779,120]
[406603220,1771969160926,668.65185757,0.00045779,120]
[406603221,1771969161541,693.3919763,0.00045779,120]
[406603222,1771969162173,719.04747942,0.00045779,120]
[406603223,1771969162774,745.65223616,0.00045779,120]
[406603224,1771969163465,773.2413689,0.00045779,120]
[406603225,1771969164179,801.85129955,0.00045779,120]
[406603226,1771969165030,831.51979763,0.00045779,120]
[406603227,1771969165653,862.28603014,0.00045779,120]
[406603228,1771969166315,894.19061326,0.00045779,120]
[406603229,1771969166958,927.27566595,0.00045779,120]
[406603230,1771969167618,961.58486559,0.00045779,120]
[406603231,1771969168538,961.58486559,0.00045779,120]
[406603232,1771969216229,500.0,0.00045754,120]
[406603233,1771969216867,518.5,0.00045754,120]
[406603235,1771969217486,537.6845,0.00045754,120]
[406603236,1771969218111,557.5788265,0.00045754,120]
[406603237,1771969218717,578.20924308,0.00045754,120]
[406603238,1771969219349,599.60298507,0.00045754,120]
[406603239,1771969219955,621.78829552,0.00045754,120]
[406603240,1771969220571,644.79446246,0.00045754,120]
[406603241,1771969221238,668.65185757,0.00045754,120]
[406603242,1771969221795,693.3919763,0.00045754,120]
[406603243,1771969222431,719.04747942,0.00045754,120]
[406603244,1771969223051,745.65223616,0.00045754,120]
[406603245,1771969223664,773.2413689,0.00045754,120]
[406603246,1771969224291,801.85129955,0.00045754,120]
[406603247,1771969224932,831.51979763,0.00045754,120]
[406603248,1771969225552,862.28603014,0.00045754,120]
[406603249,1771969226196,894.19061326,0.00045754,120]
[406603251,1771969226840,927.27566595,0.00045754,120]
[406603252,1771969227468,961.58486559,0.00045754,120]
[406603253,1771969228096,961.58486559,0.00045754,120]
[406603260,1771969333904,500.0,0.00045754,120]
[406603261,1771969334669,518.5,0.00045754,120]
[406603262,1771969335410,537.6845,0.00045754,120]
[406603263,1771969335777,557.5788265,0.00045754,120]
[406603264,1771969336392,578.20924308,0.00045754,120]
[406603265,1771969337044,599.60298507,0.00045754,120]
[406603266,1771969337673,621.78829552,0.00045754,120]
[406603267,1771969338291,644.79446246,0.00045754,120]
[406603268,1771969338909,668.65185757,0.00045754,120]
[406603269,1771969339561,693.3919763,0.00045754,120]
[406603270,1771969340163,719.04747942,0.00045754,120]
[406603271,1771969340786,745.65223616,0.00045754,120]
[406603272,1771969341490,773.2413689,0.00045754,120]
[406603273,1771969341995,801.85129955,0.00045754,120]
[406603274,1771969342634,831.51979763,0.00045754,120]
[406603275,1771969343269,862.28603014,0.00045754,120]
[406603276,1771969344149,894.19061326,0.00045754,120]
[406603277,1771969345029,927.27566595,0.00045754,120]
[406603278,1771969345421,961.58486559,0.00045754,120]
[406603279,1771969346010,961.58486559,0.00045754,120]